Cogmind - Beta 9.6 @@@ ROGUE MODE // 2020.08.01 @ 21:28:15 // Winter2019/RPGLIKE Player: Hermelin Result: Destroyed by Y-45 Defender with Heavy Assault Rifle Performance ------------- Evolutions (1) 500 Regions Visited (3) 600 Robots Destroyed (61) 305 Value Destroyed (1577) 1577 Prototype IDs (5) 100 Alien Tech Used (0) 0 Bonus (113) 113 TOTAL SCORE: 3195 Bonus ------- High Alert Combat Kills 113 Cogmind --------- Core Integrity 0/700 Matter 300/300 Energy 160/160 System Corruption 0% Temperature Cool (12) Movement Hovering (76) Location -9/Materials Parts ------- > --- POWER (1) -------- Light Nuclear Core > --- PROPULSION (3) --- Light Treads Hover Unit Improved Hover Unit > --- UTILITY (5) ------ Improved Signal Interpreter Improved Terrain Scanner Improved Targeting Computer Hardened Light Armor Plating > --- WEAPON (3) ------- Improved Assault Rifle Improved Assault Rifle Mini Grenade Launcher > --- INVENTORY (3) ---- Light Armor Plating Improved EM Shotgun Heavy Assault Rifle Peak State ------------ > --- POWER ------------ Light Nuclear Core > --- PROPULSION ------- Light Treads Hover Unit Improved Hover Unit > --- UTILITY ---------- Improved Signal Interpreter Improved Terrain Scanner Improved Targeting Computer Hardened Light Armor Plating > --- WEAPON ----------- Improved EM Shotgun Improved Assault Rifle Mini Grenade Launcher > --- INVENTORY -------- Improved Ion Engine Light Armor Plating Hacking Suite [Rating: 23] Favorites ----------- Power Light Nuclear Core Engine Light Ion Engine Power Core Light Nuclear Core Propulsion Hover Unit Treads Light Treads Wheel Compact Wheel Hover Unit Hover Unit Utility Improved Terrain Scanner Device Improved Terrain Scanner Processor Improved Signal Interpreter Hackware Hacking Suite Protection Hardened Light Armor Plating Weapon Assault Rifle Energy Gun Improved EM Shotgun Ballistic Gun Assault Rifle Launcher Mini Grenade Launcher Build | -11 -10 -10 -9 ------- Run | Scr Mat Min Mat Slots Evolved 8 | 3 3 . 2 Power . | . . . . Propulsion 2 | 1 1 . . Utility 4 | 1 2 . 1 Weapon 2 | 1 . . 1 Parts Attached 33 | 7 14 . 12 Power 6 | 1 2 . 3 Engine 3 | 1 1 . 1 Core 3 | . 1 . 2 Reactor . | . . . . Propulsion 8 | 2 4 . 2 Treads 2 | 1 1 . . Leg . | . . . . Wheel 1 | 1 . . . Hover 5 | . 3 . 2 Flight . | . . . . Utility 9 | 2 6 . 1 Device 4 | 1 3 . . Storage . | . . . . Processor 3 | 1 2 . . Hackware 1 | . 1 . . Protection 1 | . . . 1 Artifact . | . . . . Weapon 10 | 2 2 . 6 Energy Gun 1 | . . . 1 Energy Cannon . | . . . . Ballistic Gun 8 | 2 1 . 5 Ballistic Cannon . | . . . . Launcher 1 | . 1 . . Special Weapon . | . . . . Impact Weapon . | . . . . Slashing Weapon . | . . . . Piercing Weapon . | . . . . Special Melee Weapon . | . . . . Unidentified Prototypes 1 | . . . 1 Parts Lost . | . . . . Power . | . . . . Propulsion . | . . . . Utility . | . . . . Weapon . | . . . . Highest Loss Streak . | . . . . Average Slot Usage (%) 98 | . 98 100 97 Engine 1 | . 4 . . Core 8 | . 6 10 8 Treads 11 | . 13 10 8 Hover 16 | . 14 20 17 Device 12 | . 17 10 8 Processor 16 | . 13 20 17 Hackware 5 | . 4 10 4 Protection 1 | . . . 4 Ballistic Gun 16 | . 20 10 16 Launcher 6 | . 2 10 8 Naked Turns . | . . . . Heaviest Build 18 | 7 11 9 18 Greatest Support 25 | 20 25 17 19 Greatest Overweight (x) . | . . . . Average Overweight (x) . | . . . . Largest Inventory Capacity 3 | . . 3 3 Average Capacity 1 | . . 2 3 Most Carried 3 | . . 1 3 Average Carried 1 | . . . 2 Final Capacity 3 | . . 3 3 Final Carried 3 | . . 1 3 Class Distribution -------------------- 75% | Mutant 24% | Scavenger-Mutant Dominant Class ---------------- Mutant | -10/Materials Mutant | -10/Mines Mutant | -9/Materials Resources | -11 -10 -10 -9 ----------- Run | Scr Mat Min Mat Matter Collected 1325 | 274 478 3 570 Remotely 175 | . 175 . . Salvage Created 2157 | 30 949 13 1165 Parts 135 | 3 51 3 78 Haulers Intercepted 3 | . 2 . 1 Recyclers Shooed . | . . . . Parts Field Recycled . | . . . . Retrieved Matter . | . . . . Parts Self-Destructed . | . . . . Prevented . | . . . . Kills | -11 -10 -10 -9 ------- Run | Scr Mat Min Mat Combat Hostiles Destroyed 48 | . 19 . 29 Guns 45 | . 19 . 26 AOE 3 | . . . 3 Classes Destroyed 8 | 1 5 1 1 Worker 2 | . . 1 1 Tunneler 2 | 1 1 . . Hauler 3 | . 2 . 1 Operator 4 | . 3 . 1 Watcher 2 | . 1 . 1 Swarmer 13 | . 3 . 10 Grunt 31 | . 16 . 15 Sentry 4 | . . . 4 Best Kill Streak 8 | 1 5 1 8 Combat Bots Only 8 | . 5 . 8 Max Kills in Single Turn 3 | 1 1 1 3 Gunslinging . | . . . . Exploded 3 | . . . 3 Melee . | . . . . Uniques/NPCs Destroyed . | . . . . Combat | -11 -10 -10 -9 -------- Run | Scr Mat Min Mat Damage Taken 2090 | . 773 54 1263 Core 1620 | . 609 42 969 Absorbed by Shields . | . . . . Redirected to Core 1328 | . 517 42 769 Core Remaining (%) 82 | 100 . 65 . Volleys Fired 192 | 1 87 1 103 Largest 2 | 2 2 1 2 Hottest 46 | 40 40 20 46 Shots Fired 336 | 2 164 1 169 Gun 335 | 2 164 1 168 Cannon . | . . . . Launcher 1 | . . . 1 Special . | . . . . Kinetic 335 | 2 164 1 168 Thermal . | . . . . Explosive 1 | . . . 1 Electromagnetic . | . . . . Robot Hit Streak 22 | 1 18 13 22 Robot Miss Streak 3 | . 3 . 2 Penetration Max . | . . . . Secondary Targets 6 | . 4 . 2 Max Gunslinging Chain 1 | . 1 . 1 Shots Hit Robots 260 | 1 124 1 134 Core Hits 111 | 1 52 1 57 Critical Hits 2 | . 1 . 1 Critical Kills 1 | . 1 . . Critical Parts Destroyed 1 | . . . 1 Melee Attacks . | . . . . Impact . | . . . . Slashing . | . . . . Piercing . | . . . . Sneak Attacks . | . . . . Combat Hostiles . | . . . . Follow-up Attacks . | . . . . Damage Inflicted 3226 | 15 1309 12 1890 Guns 3051 | 15 1308 12 1716 Cannons . | . . . . Explosions 174 | . . . 174 Melee . | . . . . Ramming 1 | . 1 . . Kinetic 3051 | 15 1308 12 1716 Thermal . | . . . . Explosive 174 | . . . 174 Electromagnetic . | . . . . Impact . | . . . . Slashing . | . . . . Piercing . | . . . . Highest Corruption . | . . . . Average Corruption . | . . . . Corruption Purged . | . . . . Overload Shots . | . . . . Overflow Damage . | . . . . Projectiles . | . . . . Explosions . | . . . . Melee . | . . . . Knockbacks . | . . . . Impact . | . . . . Kinetic . | . . . . Secondary . | . . . . Self-Inflicted Damage . | . . . . Shots . | . . . . Rammed 1 | . 1 . . Targets Rammed 1 | . 1 . . Kicked . | . . . . Crushed . | . . . . Highest Temperature 239 | . 23 . 239 Average Temperature 26 | . 6 . 37 Received Heat Transfer 846 | . 402 . 444 Siege Activations . | . . . . Robots Corrupted . | . . . . Combat Hostiles . | . . . . Parts Fried . | . . . . Impact Corruptions . | . . . . Robots Melted . | . . . . Combat Hostiles . | . . . . Parts Melted . | . . . . Heat Transferred . | . . . . Parts Sabotaged . | . . . . Parts Stolen . | . . . . Parts Stripped . | . . . . Power Chain Reactions . | . . . . Missiles Intercepted . | . . . . Alert | -11 -10 -10 -9 ------- Run | Scr Mat Min Mat Peak Influence 693 | 5 406 112 693 Average Influence 297 | 1 280 110 391 Maximum Alert Level 2 | . 2 . 2 Low Security (%) 27 | 100 19 100 8 Level 1 53 | . 79 . 48 Level 2 18 | . . . 43 Level 3 . | . . . . Level 4 . | . . . . Level 5 . | . . . . High Security . | . . . . Max Security . | . . . . Squads Dispatched 11 | . 7 . 4 Investigation 7 | . 4 . 3 Extermination . | . . . . Reinforcement 4 | . 3 . 1 Assault . | . . . . Garrison . | . . . . Intercept . | . . . . Construction Impeded . | . . . . Haulers Reinforced . | . . . . Stealth | -11 -10 -10 -9 --------- Run | Scr Mat Min Mat Distress Signals 3 | . 2 . 1 Communications Jammed . | . . . . Distress Signals . | . . . . Times Spotted 76 | . 25 11 40 Peak Tracking Total 15 | . 7 15 7 Tactical Retreats 2 | . . 1 1 Traps | -11 -10 -10 -9 ------- Run | Scr Mat Min Mat Traps Triggered 2 | . 2 . . Indirectly . | . . . . Trap Hack Attempts . | . . . . Triggered . | . . . . Disarmed . | . . . . Reprogrammed . | . . . . Reused . | . . . . Traps Extracted . | . . . . Installed . | . . . . Triggered . | . . . . Machines | -11 -10 -10 -9 ---------- Run | Scr Mat Min Mat Machines Disabled 3 | . 2 . 1 Max in Single Turn 1 | . 1 . 1 Machines Sabotaged . | . . . . Garrisons Compromised . | . . . . Overloaded Fab Kills . | . . . . Fab Network Shutdowns . | . . . . Hacking | -11 -10 -10 -9 --------- Run | Scr Mat Min Mat Machines Accessed 11 | . 3 . 8 Terminals 7 | . 1 . 6 Fabricators . | . . . . Repair Stations 1 | . 1 . . Recycling Units 2 | . 1 . 1 Scanalyzers 1 | . . . 1 Garrison Access . | . . . . Total Hacks 35 | . 7 . 28 Successful 20 | . 1 . 19 Failed 15 | . 6 . 9 Catastrophic . | . . . . Database Lockouts . | . . . . Manual 16 | . 3 . 13 Terminals 24 | . 2 . 22 Fabricators . | . . . . Repair Stations 3 | . 3 . . Recycling Units 6 | . 2 . 4 Scanalyzers 2 | . . . 2 Garrison Access . | . . . . Terminal Hacks 7 | . . . 7 Prototype ID Bank 2 | . . . 2 Branch Access Points 1 | . . . 1 Terminal Index 2 | . . . 2 Locate Traps 1 | . . . 1 Zone Layout 1 | . . . 1 Fabricator Hacks . | . . . . Repair Station Hacks 1 | . 1 . . Scan Component 1 | . 1 . . Recycling Unit Hacks 1 | . . . 1 Report Inventory 1 | . . . 1 Scanalyzer 2 | . . . 2 Insert Component 1 | . . . 1 Analyze 1 | . . . 1 Garrison Access Hacks . | . . . . Unauthorized Hacks 9 | . . . 9 Terminals 8 | . . . 8 Track 1 | . . . 1 Assimilate 1 | . . . 1 Botnet 5 | . . . 5 Operators 1 | . . . 1 Fabricators . | . . . . Repair Stations . | . . . . Recycling Units 1 | . . . 1 Reject 1 | . . . 1 Scanalyzers . | . . . . Garrison Access . | . . . . Data Cores Recovered . | . . . . Used . | . . . . Hacking Detections 11 | . 3 . 8 Full Trace Events 6 | . 2 . 4 Feedback Events . | . . . . Feedback Blocked . | . . . . Robot Schematics Acquired . | . . . . Robots Built . | . . . . Matter . | . . . . Time . | . . . . Total Robot Build Rating . | . . . . Part Schematics Acquired 1 | . . . 1 Parts Built . | . . . . Matter . | . . . . Time . | . . . . Total Part Build Rating . | . . . . Parts Repaired . | . . . . Time . | . . . . Parts Recycled . | . . . . Recycled Matter . | . . . . Retrieved Matter . | . . . . Retrieved Components . | . . . . Parts Scanalyzed 1 | . . . 1 Part Schematics Acquired 1 | . . . 1 Parts Damaged . | . . . . Bothacking | -11 -10 -10 -9 ------------ Run | Scr Mat Min Mat Used RIF Installer . | . . . . Robots Hacked . | . . . . Non-combat . | . . . . Combat . | . . . . Robot Hacks Applied . | . . . . Relay Couplers Released . | . . . . Robots Rewired . | . . . . Allies Hacked . | . . . . Hacks Repelled . | . . . . Allies | -11 -10 -10 -9 -------- Run | Scr Mat Min Mat Total Allies 1 | . . . 1 Largest Group 1 | . . . 1 Highest-Rated Group 10 | . . . 10 Highest-Rated Ally 10 | . . . 10 Total Orders . | . . . . Ally Attacks . | . . . . Total Damage . | . . . . Kills . | . . . . Allies Corrupted . | . . . . Allies Melted . | . . . . Intel | -11 -10 -10 -9 ------- Run | Scr Mat Min Mat Robot Analysis Total . | . . . . Derelict Logs Recovered . | . . . . Drone Launches . | . . . . Drone Recoveries . | . . . . Exploration | -11 -10 -10 -9 ------------- Run | Scr Mat Min Mat Turns Passed 2123 | 62 865 281 915 Spaces Moved 1590 | 50 592 355 593 Core 2 | 2 . . . Treads 40 | 1 39 . . Legs . | . . . . Wheels 56 | 47 9 . . Hover 1492 | . 544 355 593 Flight . | . . . . Fastest Speed 50 | 50 76 76 76 Average Speed 81 | 99 88 76 76 Slowest Speed 160 | 160 160 76 76 Overloaded Moves . | . . . . Propulsion Burnouts . | . . . . Robots Hopped . | . . . . Cave-ins Triggered . | . . . . Exploration Rate (%) 43 | 4 58 74 39 Regions Visited 3 Branch Regions 1 Pre-discovered Areas . | . . . . Known Exits Taken 2 | . 1 1 . Unknown Exits Taken 1 | 1 . . . Scrap Searched 1 | . . 1 . Spaces Dug . | . . . . Terrain Destroyed 10 | . . . 10 Melee . | . . . . Projectile . | . . . . AOE 10 | . . . 10 Actions | -11 -10 -10 -9 --------- Run | Scr Mat Min Mat Total 2105 | 57 784 364 900 Wait 211 | . 59 8 144 Move 1587 | 49 591 354 593 Hop . | . . . . Pick Up 10 | . . 1 9 Fast Attach 21 | 7 10 . 4 Attach 2 | . . . 2 Detach 1 | . . . 1 Swap 10 | . 4 . 6 Drop 26 | . 11 . 15 Fire 192 | 1 87 1 103 Melee . | . . . . Ram 1 | . 1 . . Kick . | . . . . Crush . | . . . . Escape Stasis . | . . . . Rewire . | . . . . Trap . | . . . . Miscellaneous 44 | . 21 . 23 Route ------- -11/Scrapyard -10/Materials (discovered 3 exits: *Mat x2 / *Min) -10/Mines -9/Materials (discovered 2 exits: *Mat / *Min) History --------- Turn | Location | Event 2 | -11/Scrapyard | Upgraded with Propulsion slot (x1) 2 | -11/Scrapyard | Upgraded with Utility slot (x1) 2 | -11/Scrapyard | Upgraded with Weapon slot (x1) 14 | -11/Scrapyard | Discovered new exit (range 16) 63 | -11/Scrapyard | Entered Materials 326 | -10/Materials | Reached level 2 343 | -10/Materials | Upgraded with Propulsion slot (x1) 343 | -10/Materials | Upgraded with Utility slot (x2) 500 | -10/Materials | Core integrity fell below 50% 554 | -10/Materials | Discovered new exit (range 13) 725 | -10/Materials | Discovered new exit (range 7) 729 | -10/Materials | Identified exit to Materials 820 | -10/Materials | Discovered exit to Materials (range 12) 854 | -10/Materials | Build established: Mutant 927 | -10/Materials | Identified exit to Mines 928 | -10/Materials | Entered Mines 930 | -10/Mines | Reached level 3 1025 | -10/Mines | Discovered exit to Materials (range 10) 1151 | -10/Mines | Assembled infested the area 1156 | -10/Mines | Assisted by a Guerilla fighting off Assembled 1209 | -10/Mines | Entered Materials 1211 | -9/Materials | Reached level 4 1263 | -9/Materials | Core integrity fell below 50% 1325 | -9/Materials | Destroyed 8 combat bots 1332 | -9/Materials | Upgraded with Weapon slot (x1) 1444 | -9/Materials | Discovered new exit (range 7) 1448 | -9/Materials | Identified exit to Mines 1528 | -9/Materials | Reached level 5 1563 | -9/Materials | Discovered new exit (range 14) 1627 | -9/Materials | Identified exit to Materials 1850 | -9/Materials | Reached level 6 1859 | -9/Materials | Upgraded with Utility slot (x1) 2041 | -9/Materials | Core integrity fell below 20% 2124 | -9/Materials | Destroyed by Y-45 Defender with Heavy Assault Rifle Last Messages --------------- 02093_ K-01 Serf collects debris. 02094_ R-06 Scavenger collects Lgt. Nuclear Core. 02094_ Acquired 24 matter. 02095_ R-06 Scavenger collects Aluminum Leg. 02096_ K-01 Serf collects debris. 02099_ R-06 Scavenger collects Imp. Heat Sink. 02099_ R-06 Scavenger collects Lgt. Nuclear Core. 02100_ K-01 Serf collects debris. 02100_ Used Protomatter to restore core integrity (+111, depleted) 02103_ K-01 Serf collects debris. 02104_ Acquired 6 matter. 02107_ K-01 Serf collects debris. 02109_ R-06 Scavenger collects Tractor Beam. 02110_ Acquired 6 matter. 02110_ K-01 Serf collects debris. 02113_ Acquired 6 matter. 02113_ K-01 Serf collects debris. 02116_ Acquired 6 matter. 02117_ K-01 Serf collects debris. 02119_ Acquired 6 matter. Map ----- +----------------------------------------------------+ | ?????????????????????????????????????????????????? | | ?????????????????????????????????????????????????? | | ?????????????????????????????????????????????????? | | ?????????????????????????????????????????????????? | | ?????????????????????????????????????????????????? | | ?????????????????????????#???????????????????????? | | ??????????????????"??##??????????????????????????? | | ??????????????????"??????????? ??????????????????? | | ???????????????????? ####?##? ??????????????????? | | ?????????????????? ?####### ?? ????????????????? | | ?????????????? ? #####?## #??????????????? | | ???????????????"? ? #####?### ?##?????????????? | | ??????????????"? ? ####?#### ?##??#??????????? | | ??????????????#?###??##?##?#?# ##?##???????????? | | ????????????####?############# ?#####??????????? | | ????????????#?#?######?####### ######??????????? | | ?????????????? ? ######### ### ?????????? | | ???????????# ? ? ?# ## ##? ?????????? | | ?????????? ? """ ""? ## ""## ##? ?????????? | | ?? ?????? # """ ""? ## T"## ### ?? ????????? | | ? ?? ???? # """ ??" ## " ## ### ? ???????? | | ?#?#?##??? + ## *%! ## ### ????????? | | ###??????? # ## !% ##^^^#?# ????????? | | #####???? # ? ## % % ##^^^### ??????? | | #?#??#??? ###############+### #######+#???????? | | ?????#??? @%%= % ?????? | | #?##????? u ?????? | | ##?#?#?? Y % k % ?????? | | #?###???? ##############+#############+##??????? | | ######???? # "T" ## T ##?#### ?????????? | | #??###?? ## ## ######? ?? ??????? | | ######? ?# """ """ ## """####### ?????????? | | ###?## ## """ """ ## """####?## ?? ???????? | | ###??#? ?## """ """ ## """##?#### ??????????? | | #??### ## ## #######????????????? | | [ ###### ## [ ##+#######??#?? ????????? | | ##?### ## ## #?#########? ? ?????????? | | ##### #####+###### ############??? ????????? | | ###?# ###??????????????? | | #####?# ##### ###?#?#??????????? | | ## ## #??## #?#??????????????? | | ## # # #### ########?### ? ? ???????????? | | ########?# ## ? ????#?????????????????? | | ########?# ## """ ""??#??????????????????? | | # ############## #? "R ?"??#??????????????????? | | #? "?"??"??#??????????????????? | | ################ ## ?? ? ????????????????????? | | # ########## ## ??? ???? ???????????????? | | # % # ? ???? ????????????????? | | # T #?? ?? ?#?????????????????? | +----------------------------------------------------+ Best States ------------- Heat Dissipation 45 Energy Generation 14 Energy Capacity 160 Matter Stores 300 Matter Capacity 300 Sight Range 17 Terrain Scan Range 16 Terrain Scan Density 160 Armor Coverage 150 Evasion (%) 49 Targeting Accuracy 6 Recoil Reduction 2 Offensive Hacking 10 Item Schematics ----------------- Imp. Assault Rifle | -9/Materials | Scanalyzed Robot Schematics ------------------ None Fabricated ------------ Nothing Alien Tech Used ----------------- None Achievements -------------- None Challenges ------------ None RPGLIKE | -11 -10 -10 -9 --------- Run | Scr Mat Min Mat Levels Raised 5 | . 1 1 3 XP Earned 11564 | 3000 2719 500 5345 XP Spent 8260 | 1500 3000 1500 2260 Upgrades 17 | 3 7 3 4 Propulsion Slot 2 | 1 1 . . Utility Slot 4 | 1 2 . 1 Weapon Slot 2 | 1 . . 1 Core Integrity 2 | . . . 2 Heat Dissipation 1 | . 1 . . Mass Support 1 | . 1 . . Inventory Capacity 3 | . . 3 . Sight Range 1 | . 1 . . Terrain Scan Density 1 | . 1 . . Protomatter Created 366 | . 162 . 204 Integrity Restored 927 | . 450 . 477 Core 918 | . 441 . 477 Parts 9 | . 9 . . Protomatter Decayed 53 | . 12 . 41 Game ------ Seed HardlightReclamationFalx Manual? 0 Play Time 00:31:05 Cumulative 136.2 hours Start 2020.08.01 @ 01:31:56 End 2020.08.01 @ 21:28:15 Sessions 3 Manual Loads 0 Difficulty Rogue Special Mode Winter2019/RPGLIKE Game No. 59 Rogue 59 Adventurer 0 Explorer 0 Win Type - Total 2 Types 1/0/0/1/0/0/0 Lore% 76 Gallery% 68 Achievement% 64 Wizard Run 0 Options --------- ASCII 0 Keyboard 0 Movement Numpad Keybinds 0 Fullscreen 1 Font 14/SmallcapsGlow Map View 84x54 Tactical HUD 1 Map Filters NONE Filters NONE Steam 1 RUN: f956cf34-38fd-4b08-ad2f-bcb9361bb360